{"text_format":"3","workbook":"xlsx","n_sheets":2,"sheets":["Rozvrh zaměstnanců","Nastavení"],"not_rendered":{"defined_names":21},"read":"whole","date_system":"1900"}

{"sheet":"Rozvrh zaměstnanců","index":0,"n_rows":296,"n_cols":21,"rows_kept":296,"merged":[[6,1,6,9],[66,1,66,9],[126,1,126,9],[186,1,186,9],[246,1,246,9]]}
["Rozvrh směn zaměstnanců"]
[]
[null,"CELKEM:",null,{"$f":"SUM(4:4)","v":{"v":56,"d":"56.00"}}]
[null,"HODIN:",null,{"$f":"ZaměstnanecCelkemHodinyDny","v":{"v":8,"d":"8.00"}},{"v":8,"d":"8.00"},{"v":8,"d":"8.00"},{"v":8,"d":"8.00"},{"v":8,"d":"8.00"},{"v":8,"d":"8.00"},{"v":8,"d":"8.00"},{"v":0,"d":"0.00"},{"v":0,"d":"0.00"},{"v":0,"d":"0.00"},{"v":0,"d":"0.00"},{"v":0,"d":"0.00"},{"v":0,"d":"0.00"},{"v":0,"d":"0.00"},{"v":0,"d":"0.00"},{"v":0,"d":"0.00"},{"v":0,"d":"0.00"},{"v":0,"d":"0.00"}]
[null,"ZAMĚSTNANCI:",null,"Chvojkova, P","Kodeda, A","Lazecky, P","Kotas, J","Dryml, J","Hrebicek, O","Kupkova, H"]
[]
[null,"2012-07-16T09:00:00"]
[null,{"$f":"B7","v":41106.375},{"$nulls":5},"Dovolená"]
[null,{"$f":"ZobrazeníObdobí","v":":15"},null,"Recepce",{"$nulls":3},"Dovolená"]
[null,":30",null,"Recepce",{"$nulls":3},"Dovolená"]
[null,":45",null,"Recepce","Vedoucí",null,"Zákaznické služby","Dovolená"]
[null,"10:00 dop.",null,"Recepce","Vedoucí",null,"Zákaznické služby","Dovolená"]
[null,":15",null,"Recepce","Vedoucí",null,"Zákaznické služby","Dovolená"]
[null,":30",null,"Recepce","Vedoucí",null,"Zákaznické služby","Dovolená","Účetnictví"]
[null,":45",null,"Recepce","Vedoucí",null,"Zákaznické služby","Dovolená","Účetnictví","Údržbář"]
[null,"11:00 dop.",null,"Recepce","Vedoucí",null,"Zákaznické služby","Dovolená","Účetnictví","Údržbář"]
[null,":15",null,"Recepce","Vedoucí","Průvodce","Zákaznické služby","Dovolená","Účetnictví","Údržbář"]
[null,":30",null,"Recepce","Přestávka","Průvodce","Zákaznické služby","Dovolená","Účetnictví","Údržbář"]
[null,":45",null,"Oběd","Vedoucí","Průvodce","Zákaznické služby","Dovolená","Účetnictví","Údržbář"]
[null,"12:00 odp.",null,"Oběd","Vedoucí","Průvodce","Zákaznické služby","Dovolená","Účetnictví","Údržbář"]
[null,":15",null,"Recepce","Vedoucí","Průvodce","Zákaznické služby","Dovolená","Přestávka","Údržbář"]
[null,":30",null,"Recepce","Vedoucí","Přestávka","Zákaznické služby","Dovolená","Telefony","Přestávka"]
[null,":45",null,"Recepce","Vedoucí","Průvodce","Zákaznické služby","Dovolená","Telefony","Údržbář"]
[null,"1:00 odp.",null,"Recepce","Vedoucí","Průvodce","Zákaznické služby","Dovolená","Telefony","Údržbář"]
[null,":15",null,"Recepce","Vedoucí","Průvodce","Oběd","Dovolená","Telefony","Údržbář"]
[null,":30",null,null,"Vedoucí","Průvodce","Oběd","Dovolená","Telefony","Údržbář"]
[null,":45",null,null,"Vedoucí","Průvodce","Oběd","Dovolená","Oběd","Údržbář"]
[null,"2:00 odp.",null,"Pokladní","Oběd","Průvodce","Oběd","Dovolená","Oběd","Údržbář"]
[null,":15",null,"Pokladní","Oběd","Průvodce","Zákaznické služby","Dovolená","Telefony","Údržbář"]
[null,":30",null,"Pokladní","Oběd","Oběd","Zákaznické služby","Dovolená","Telefony","Oběd"]
[null,":45",null,"Pokladní","Oběd","Oběd","Zákaznické služby","Dovolená","Telefony","Oběd"]
[null,"3:00 odp.",null,"Pokladní","Zabezpečení","Oběd","Zákaznické služby","Dovolená","Telefony","Oběd"]
[null,":15",null,"Pokladní","Zabezpečení","Oběd","Zákaznické služby","Dovolená","Telefony","Oběd"]
[null,":30",null,"Pokladní","Zabezpečení","Průvodce","Zákaznické služby","Dovolená","Telefony","Zavřít"]
[null,":45",null,"Pokladní","Zabezpečení","Průvodce","Zákaznické služby","Dovolená","Telefony","Zavřít"]
[null,"4:00 odp.",null,"Pokladní","Zabezpečení","Průvodce","Zákaznické služby","Dovolená","Přestávka","Zavřít"]
[null,":15",null,"Přestávka","Zabezpečení","Průvodce","Přestávka","Dovolená","Telefony","Zavřít"]
[null,":30",null,"Pokladní","Zabezpečení","Průvodce","Zákaznické služby","Dovolená","Telefony","Zavřít"]
[null,":45",null,"Pokladní","Zabezpečení","Průvodce","Zákaznické služby","Dovolená","Telefony","Zavřít"]
[null,"5:00 odp.",null,"Pokladní","Zabezpečení","Průvodce","Zákaznické služby",null,"Telefony","Zavřít"]
[null,":15",null,"Pokladní","Zabezpečení","Průvodce","Zákaznické služby",null,"Telefony","Zavřít"]
[null,":30",null,"Pokladní","Zabezpečení","Průvodce","Zákaznické služby",null,"Telefony","Zavřít"]
[null,":45",null,"Pokladní","Zabezpečení","Průvodce","Zákaznické služby",null,"Telefony","Zavřít"]
[null,"6:00 odp.",null,"Pokladní","Zabezpečení","Průvodce","Zákaznické služby",null,"Telefony","Zavřít"]
[null,":15",null,"Pokladní","Zabezpečení","Průvodce","Zákaznické služby",null,"Telefony","Zavřít"]
[null,":30",null,null,"Zabezpečení","Průvodce","Zákaznické služby",null,"Telefony","Zavřít"]
[null,":45",null,null,"Zabezpečení","Přestávka","Zákaznické služby",null,"Telefony","Přestávka"]
[null,"7:00 odp.",{"$nulls":3},"Průvodce",null,null,"Telefony","Zavřít"]
[null,":15",{"$nulls":3},"Průvodce",null,null,"Telefony","Zavřít"]
[null,":30",{"$nulls":3},"Průvodce",{"$nulls":3},"Zavřít"]
[null,":45",{"$nulls":3},"Průvodce",{"$nulls":3},"Zavřít"]
[null,"8:00 odp.",{"$nulls":3},"Průvodce",{"$nulls":3},"Zavřít"]
[null,":15",{"$nulls":3},"Průvodce"]
[null,":30",{"$nulls":3},"Průvodce"]
[null,":45"]
[null,"9:00 odp."]
[]
[]
[]
[]
["Rozvrh zaměstnanců"]
[]
[null,"CELKEM:",null,{"$f":"SUM(64:64)","v":{"v":56,"d":"56.00"}}]
[null,"HODIN:",null,{"$f":"ZaměstnanecCelkemHodinyDny","v":{"v":8,"d":"8.00"}},{"v":8,"d":"8.00"},{"v":8,"d":"8.00"},{"v":8,"d":"8.00"},{"v":8,"d":"8.00"},{"v":8,"d":"8.00"},{"v":8,"d":"8.00"},{"v":0,"d":"0.00"},{"v":0,"d":"0.00"},{"v":0,"d":"0.00"},{"v":0,"d":"0.00"},{"v":0,"d":"0.00"},{"v":0,"d":"0.00"},{"v":0,"d":"0.00"},{"v":0,"d":"0.00"},{"v":0,"d":"0.00"},{"v":0,"d":"0.00"},{"v":0,"d":"0.00"}]
[null,"ZAMĚSTNANCI:",null,"Chvojkova, P","Kodeda, A","Lazecky, P","Kotas, J","Dryml, J","Hrebicek, O","Kupkova, H"]
[]
[null,{"$f":"B7+1","v":"2012-07-17T09:00:00"}]
[null,{"$f":"B67","v":41107.375},{"$nulls":5},"Dovolená"]
[null,{"$f":"ZobrazeníObdobí","v":":15"},null,"Recepce",{"$nulls":3},"Dovolená"]
[null,":30",null,"Recepce",{"$nulls":3},"Dovolená"]
[null,":45",null,"Recepce","Vedoucí",null,"Zákaznické služby","Dovolená"]
[null,"1:00 dop.",null,"Recepce","Vedoucí",null,"Zákaznické služby","Dovolená"]
[null,":15",null,"Recepce","Vedoucí",null,"Zákaznické služby","Dovolená"]
[null,":30",null,"Recepce","Vedoucí",null,"Zákaznické služby","Dovolená","Účetnictví"]
[null,":45",null,"Recepce","Vedoucí",null,"Zákaznické služby","Dovolená","Účetnictví","Údržbář"]
[null,"2:00 dop.",null,"Recepce","Vedoucí",null,"Zákaznické služby","Dovolená","Účetnictví","Údržbář"]
[null,":15",null,"Recepce","Vedoucí","Průvodce","Zákaznické služby","Dovolená","Účetnictví","Údržbář"]
[null,":30",null,"Recepce","Přestávka","Průvodce","Zákaznické služby","Dovolená","Účetnictví","Údržbář"]
[null,":45",null,"Oběd","Vedoucí","Průvodce","Zákaznické služby","Dovolená","Účetnictví","Údržbář"]
[null,"3:00 dop.",null,"Oběd","Vedoucí","Průvodce","Zákaznické služby","Dovolená","Účetnictví","Údržbář"]
[null,":15",null,"Recepce","Vedoucí","Průvodce","Zákaznické služby","Dovolená","Přestávka","Údržbář"]
[null,":30",null,"Recepce","Vedoucí","Přestávka","Zákaznické služby","Dovolená","Telefony","Přestávka"]
[null,":45",null,"Recepce","Vedoucí","Průvodce","Zákaznické služby","Dovolená","Telefony","Údržbář"]
[null,"4:00 dop.",null,"Recepce","Vedoucí","Průvodce","Zákaznické služby","Dovolená","Telefony","Údržbář"]
[null,":15",null,"Recepce","Vedoucí","Průvodce","Oběd","Dovolená","Telefony","Údržbář"]
[null,":30",null,null,"Vedoucí","Průvodce","Oběd","Dovolená","Telefony","Údržbář"]
[null,":45",null,null,"Vedoucí","Průvodce","Oběd","Dovolená","Oběd","Údržbář"]
[null,"5:00 dop.",null,"Pokladní","Oběd","Průvodce","Oběd","Dovolená","Oběd","Údržbář"]
[null,":15",null,"Pokladní","Oběd","Průvodce","Zákaznické služby","Dovolená","Telefony","Údržbář"]
[null,":30",null,"Pokladní","Oběd","Oběd","Zákaznické služby","Dovolená","Telefony","Oběd"]
[null,":45",null,"Pokladní","Oběd","Oběd","Zákaznické služby","Dovolená","Telefony","Oběd"]
[null,"6:00 dop.",null,"Pokladní","Zabezpečení","Oběd","Zákaznické služby","Dovolená","Telefony","Oběd"]
[null,":15",null,"Pokladní","Zabezpečení","Oběd","Zákaznické služby","Dovolená","Telefony","Oběd"]
[null,":30",null,"Pokladní","Zabezpečení","Průvodce","Zákaznické služby","Dovolená","Telefony","Zavřít"]
[null,":45",null,"Pokladní","Zabezpečení","Průvodce","Zákaznické služby","Dovolená","Telefony","Zavřít"]
[null,"7:00 dop.",null,"Pokladní","Zabezpečení","Průvodce","Zákaznické služby","Dovolená","Přestávka","Zavřít"]
[null,":15",null,"Přestávka","Zabezpečení","Průvodce","Přestávka","Dovolená","Telefony","Zavřít"]
[null,":30",null,"Pokladní","Zabezpečení","Průvodce","Zákaznické služby","Dovolená","Telefony","Zavřít"]
[null,":45",null,"Pokladní","Zabezpečení","Průvodce","Zákaznické služby","Dovolená","Telefony","Zavřít"]
[null,"8:00 dop.",null,"Pokladní","Zabezpečení","Průvodce","Zákaznické služby",null,"Telefony","Zavřít"]
[null,":15",null,"Pokladní","Zabezpečení","Průvodce","Zákaznické služby",null,"Telefony","Zavřít"]
[null,":30",null,"Pokladní","Zabezpečení","Průvodce","Zákaznické služby",null,"Telefony","Zavřít"]
[null,":45",null,"Pokladní","Zabezpečení","Průvodce","Zákaznické služby",null,"Telefony","Zavřít"]
[null,"9:00 dop.",null,"Pokladní","Zabezpečení","Průvodce","Zákaznické služby",null,"Telefony","Zavřít"]
[null,":15",null,"Pokladní","Zabezpečení","Průvodce","Zákaznické služby",null,"Telefony","Zavřít"]
[null,":30",null,null,"Zabezpečení","Průvodce","Zákaznické služby",null,"Telefony","Zavřít"]
[null,":45",null,null,"Zabezpečení","Přestávka","Zákaznické služby",null,"Telefony","Přestávka"]
[null,"10:00 dop.",{"$nulls":3},"Průvodce",null,null,"Telefony","Zavřít"]
[null,":15",{"$nulls":3},"Průvodce",null,null,"Telefony","Zavřít"]
[null,":30",{"$nulls":3},"Průvodce",{"$nulls":3},"Zavřít"]
[null,":45",{"$nulls":3},"Průvodce",{"$nulls":3},"Zavřít"]
[null,"11:00 dop.",{"$nulls":3},"Průvodce",{"$nulls":3},"Zavřít"]
[null,":15",{"$nulls":3},"Průvodce"]
[null,":30",{"$nulls":3},"Průvodce"]
[null,":45"]
[null,"12:00 odp."]
[]
[]
[]
[]
["Rozvrh zaměstnanců"]
[]
[null,"CELKEM:",null,{"$f":"SUM(124:124)","v":{"v":56,"d":"56.00"}}]
[null,"HODIN:",null,{"$f":"ZaměstnanecCelkemHodinyDny","v":{"v":8,"d":"8.00"}},{"v":8,"d":"8.00"},{"v":8,"d":"8.00"},{"v":8,"d":"8.00"},{"v":8,"d":"8.00"},{"v":8,"d":"8.00"},{"v":8,"d":"8.00"},{"v":0,"d":"0.00"},{"v":0,"d":"0.00"},{"v":0,"d":"0.00"},{"v":0,"d":"0.00"},{"v":0,"d":"0.00"},{"v":0,"d":"0.00"},{"v":0,"d":"0.00"},{"v":0,"d":"0.00"},{"v":0,"d":"0.00"},{"v":0,"d":"0.00"},{"v":0,"d":"0.00"}]
[null,"ZAMĚSTNANCI:",null,"Chvojkova, P","Kodeda, A","Lazecky, P","Kotas, J","Dryml, J","Hrebicek, O","Kupkova, H"]
[]
[null,{"$f":"B67+1","v":"2012-07-18T09:00:00"}]
[null,{"$f":"B127","v":41108.375},{"$nulls":5},"Dovolená"]
[null,{"$f":"ZobrazeníObdobí","v":":15"},null,"Recepce",{"$nulls":3},"Dovolená"]
[null,":30",null,"Recepce",{"$nulls":3},"Dovolená"]
[null,":45",null,"Recepce","Vedoucí",null,"Zákaznické služby","Dovolená"]
[null,"4:00 odp.",null,"Recepce","Vedoucí",null,"Zákaznické služby","Dovolená"]
[null,":15",null,"Recepce","Vedoucí",null,"Zákaznické služby","Dovolená"]
[null,":30",null,"Recepce","Vedoucí",null,"Zákaznické služby","Dovolená","Účetnictví"]
[null,":45",null,"Recepce","Vedoucí",null,"Zákaznické služby","Dovolená","Účetnictví","Údržbář"]
[null,"5:00 odp.",null,"Recepce","Vedoucí",null,"Zákaznické služby","Dovolená","Účetnictví","Údržbář"]
[null,":15",null,"Recepce","Vedoucí","Průvodce","Zákaznické služby","Dovolená","Účetnictví","Údržbář"]
[null,":30",null,"Recepce","Přestávka","Průvodce","Zákaznické služby","Dovolená","Účetnictví","Údržbář"]
[null,":45",null,"Oběd","Vedoucí","Průvodce","Zákaznické služby","Dovolená","Účetnictví","Údržbář"]
[null,"6:00 odp.",null,"Oběd","Vedoucí","Průvodce","Zákaznické služby","Dovolená","Účetnictví","Údržbář"]
[null,":15",null,"Recepce","Vedoucí","Průvodce","Zákaznické služby","Dovolená","Přestávka","Údržbář"]
[null,":30",null,"Recepce","Vedoucí","Přestávka","Zákaznické služby","Dovolená","Telefony","Přestávka"]
[null,":45",null,"Recepce","Vedoucí","Průvodce","Zákaznické služby","Dovolená","Telefony","Údržbář"]
[null,"7:00 odp.",null,"Recepce","Vedoucí","Průvodce","Zákaznické služby","Dovolená","Telefony","Údržbář"]
[null,":15",null,"Recepce","Vedoucí","Průvodce","Oběd","Dovolená","Telefony","Údržbář"]
[null,":30",null,null,"Vedoucí","Průvodce","Oběd","Dovolená","Telefony","Údržbář"]
[null,":45",null,null,"Vedoucí","Průvodce","Oběd","Dovolená","Oběd","Údržbář"]
[null,"8:00 odp.",null,"Pokladní","Oběd","Průvodce","Oběd","Dovolená","Oběd","Údržbář"]
[null,":15",null,"Pokladní","Oběd","Průvodce","Zákaznické služby","Dovolená","Telefony","Údržbář"]
[null,":30",null,"Pokladní","Oběd","Oběd","Zákaznické služby","Dovolená","Telefony","Oběd"]
[null,":45",null,"Pokladní","Oběd","Oběd","Zákaznické služby","Dovolená","Telefony","Oběd"]
[null,"9:00 odp.",null,"Pokladní","Zabezpečení","Oběd","Zákaznické služby","Dovolená","Telefony","Oběd"]
[null,":15",null,"Pokladní","Zabezpečení","Oběd","Zákaznické služby","Dovolená","Telefony","Oběd"]
[null,":30",null,"Pokladní","Zabezpečení","Průvodce","Zákaznické služby","Dovolená","Telefony","Zavřít"]
[null,":45",null,"Pokladní","Zabezpečení","Průvodce","Zákaznické služby","Dovolená","Telefony","Zavřít"]
[null,"10:00 odp.",null,"Pokladní","Zabezpečení","Průvodce","Zákaznické služby","Dovolená","Přestávka","Zavřít"]
[null,":15",null,"Přestávka","Zabezpečení","Průvodce","Přestávka","Dovolená","Telefony","Zavřít"]
[null,":30",null,"Pokladní","Zabezpečení","Průvodce","Zákaznické služby","Dovolená","Telefony","Zavřít"]
[null,":45",null,"Pokladní","Zabezpečení","Průvodce","Zákaznické služby","Dovolená","Telefony","Zavřít"]
[null,"11:00 odp.",null,"Pokladní","Zabezpečení","Průvodce","Zákaznické služby",null,"Telefony","Zavřít"]
[null,":15",null,"Pokladní","Zabezpečení","Průvodce","Zákaznické služby",null,"Telefony","Zavřít"]
[null,":30",null,"Pokladní","Zabezpečení","Průvodce","Zákaznické služby",null,"Telefony","Zavřít"]
[null,":45",null,"Pokladní","Zabezpečení","Průvodce","Zákaznické služby",null,"Telefony","Zavřít"]
[null,"12:00 dop.",null,"Pokladní","Zabezpečení","Průvodce","Zákaznické služby",null,"Telefony","Zavřít"]
[null,":15",null,"Pokladní","Zabezpečení","Průvodce","Zákaznické služby",null,"Telefony","Zavřít"]
[null,":30",null,null,"Zabezpečení","Průvodce","Zákaznické služby",null,"Telefony","Zavřít"]
[null,":45",null,null,"Zabezpečení","Přestávka","Zákaznické služby",null,"Telefony","Přestávka"]
[null,"1:00 dop.",{"$nulls":3},"Průvodce",null,null,"Telefony","Zavřít"]
[null,":15",{"$nulls":3},"Průvodce",null,null,"Telefony","Zavřít"]
[null,":30",{"$nulls":3},"Průvodce",{"$nulls":3},"Zavřít"]
[null,":45",{"$nulls":3},"Průvodce",{"$nulls":3},"Zavřít"]
[null,"2:00 dop.",{"$nulls":3},"Průvodce",{"$nulls":3},"Zavřít"]
[null,":15",{"$nulls":3},"Průvodce"]
[null,":30",{"$nulls":3},"Průvodce"]
[null,":45"]
[null,"3:00 dop."]
[]
[]
[]
[]
["Rozvrh zaměstnanců"]
[]
[null,"CELKEM:",null,{"$f":"SUM(184:184)","v":{"v":56,"d":"56.00"}}]
[null,"HODIN:",null,{"$f":"ZaměstnanecCelkemHodinyDny","v":{"v":8,"d":"8.00"}},{"v":8,"d":"8.00"},{"v":8,"d":"8.00"},{"v":8,"d":"8.00"},{"v":8,"d":"8.00"},{"v":8,"d":"8.00"},{"v":8,"d":"8.00"},{"v":0,"d":"0.00"},{"v":0,"d":"0.00"},{"v":0,"d":"0.00"},{"v":0,"d":"0.00"},{"v":0,"d":"0.00"},{"v":0,"d":"0.00"},{"v":0,"d":"0.00"},{"v":0,"d":"0.00"},{"v":0,"d":"0.00"},{"v":0,"d":"0.00"},{"v":0,"d":"0.00"}]
[null,"ZAMĚSTNANCI:",null,"Chvojkova, P","Kodeda, A","Lazecky, P","Kotas, J","Dryml, J","Hrebicek, O","Kupkova, H"]
[]
[null,{"$f":"B127+1","v":"2012-07-19T09:00:00"}]
[null,{"$f":"B187","v":41109.375},{"$nulls":5},"Dovolená"]
[null,{"$f":"ZobrazeníObdobí","v":":15"},null,"Recepce",{"$nulls":3},"Dovolená"]
[null,":30",null,"Recepce",{"$nulls":3},"Dovolená"]
[null,":45",null,"Recepce","Vedoucí",null,"Zákaznické služby","Dovolená"]
[null,"7:00 dop.",null,"Recepce","Vedoucí",null,"Zákaznické služby","Dovolená"]
[null,":15",null,"Recepce","Vedoucí",null,"Zákaznické služby","Dovolená"]
[null,":30",null,"Recepce","Vedoucí",null,"Zákaznické služby","Dovolená","Účetnictví"]
[null,":45",null,"Recepce","Vedoucí",null,"Zákaznické služby","Dovolená","Účetnictví","Údržbář"]
[null,"8:00 dop.",null,"Recepce","Vedoucí",null,"Zákaznické služby","Dovolená","Účetnictví","Údržbář"]
[null,":15",null,"Recepce","Vedoucí","Průvodce","Zákaznické služby","Dovolená","Účetnictví","Údržbář"]
[null,":30",null,"Recepce","Přestávka","Průvodce","Zákaznické služby","Dovolená","Účetnictví","Údržbář"]
[null,":45",null,"Oběd","Vedoucí","Průvodce","Zákaznické služby","Dovolená","Účetnictví","Údržbář"]
[null,"9:00 dop.",null,"Oběd","Vedoucí","Průvodce","Zákaznické služby","Dovolená","Účetnictví","Údržbář"]
[null,":15",null,"Recepce","Vedoucí","Průvodce","Zákaznické služby","Dovolená","Přestávka","Údržbář"]
[null,":30",null,"Recepce","Vedoucí","Přestávka","Zákaznické služby","Dovolená","Telefony","Přestávka"]
[null,":45",null,"Recepce","Vedoucí","Průvodce","Zákaznické služby","Dovolená","Telefony","Údržbář"]
[null,"10:00 dop.",null,"Recepce","Vedoucí","Průvodce","Zákaznické služby","Dovolená","Telefony","Údržbář"]
[null,":15",null,"Recepce","Vedoucí","Průvodce","Oběd","Dovolená","Telefony","Údržbář"]
[null,":30",null,null,"Vedoucí","Průvodce","Oběd","Dovolená","Telefony","Údržbář"]
[null,":45",null,null,"Vedoucí","Průvodce","Oběd","Dovolená","Oběd","Údržbář"]
[null,"11:00 dop.",null,"Pokladní","Oběd","Průvodce","Oběd","Dovolená","Oběd","Údržbář"]
[null,":15",null,"Pokladní","Oběd","Průvodce","Zákaznické služby","Dovolená","Telefony","Údržbář"]
[null,":30",null,"Pokladní","Oběd","Oběd","Zákaznické služby","Dovolená","Telefony","Oběd"]
[null,":45",null,"Pokladní","Oběd","Oběd","Zákaznické služby","Dovolená","Telefony","Oběd"]
[null,"12:00 odp.",null,"Pokladní","Zabezpečení","Oběd","Zákaznické služby","Dovolená","Telefony","Oběd"]
[null,":15",null,"Pokladní","Zabezpečení","Oběd","Zákaznické služby","Dovolená","Telefony","Oběd"]
[null,":30",null,"Pokladní","Zabezpečení","Průvodce","Zákaznické služby","Dovolená","Telefony","Zavřít"]
[null,":45",null,"Pokladní","Zabezpečení","Průvodce","Zákaznické služby","Dovolená","Telefony","Zavřít"]
[null,"1:00 odp.",null,"Pokladní","Zabezpečení","Průvodce","Zákaznické služby","Dovolená","Přestávka","Zavřít"]
[null,":15",null,"Přestávka","Zabezpečení","Průvodce","Přestávka","Dovolená","Telefony","Zavřít"]
[null,":30",null,"Pokladní","Zabezpečení","Průvodce","Zákaznické služby","Dovolená","Telefony","Zavřít"]
[null,":45",null,"Pokladní","Zabezpečení","Průvodce","Zákaznické služby","Dovolená","Telefony","Zavřít"]
[null,"2:00 odp.",null,"Pokladní","Zabezpečení","Průvodce","Zákaznické služby",null,"Telefony","Zavřít"]
[null,":15",null,"Pokladní","Zabezpečení","Průvodce","Zákaznické služby",null,"Telefony","Zavřít"]
[null,":30",null,"Pokladní","Zabezpečení","Průvodce","Zákaznické služby",null,"Telefony","Zavřít"]
[null,":45",null,"Pokladní","Zabezpečení","Průvodce","Zákaznické služby",null,"Telefony","Zavřít"]
[null,"3:00 odp.",null,"Pokladní","Zabezpečení","Průvodce","Zákaznické služby",null,"Telefony","Zavřít"]
[null,":15",null,"Pokladní","Zabezpečení","Průvodce","Zákaznické služby",null,"Telefony","Zavřít"]
[null,":30",null,null,"Zabezpečení","Průvodce","Zákaznické služby",null,"Telefony","Zavřít"]
[null,":45",null,null,"Zabezpečení","Přestávka","Zákaznické služby",null,"Telefony","Přestávka"]
[null,"4:00 odp.",{"$nulls":3},"Průvodce",null,null,"Telefony","Zavřít"]
[null,":15",{"$nulls":3},"Průvodce",null,null,"Telefony","Zavřít"]
[null,":30",{"$nulls":3},"Průvodce",{"$nulls":3},"Zavřít"]
[null,":45",{"$nulls":3},"Průvodce",{"$nulls":3},"Zavřít"]
[null,"5:00 odp.",{"$nulls":3},"Průvodce",{"$nulls":3},"Zavřít"]
[null,":15",{"$nulls":3},"Průvodce"]
[null,":30",{"$nulls":3},"Průvodce"]
[null,":45"]
[null,"6:00 odp."]
[]
[]
[]
[]
["Rozvrh zaměstnanců"]
[]
[null,"CELKEM:",null,{"$f":"SUM(244:244)","v":{"v":56,"d":"56.00"}}]
[null,"HODIN:",null,{"$f":"ZaměstnanecCelkemHodinyDny","v":{"v":8,"d":"8.00"}},{"v":8,"d":"8.00"},{"v":8,"d":"8.00"},{"v":8,"d":"8.00"},{"v":8,"d":"8.00"},{"v":8,"d":"8.00"},{"v":8,"d":"8.00"},{"v":0,"d":"0.00"},{"v":0,"d":"0.00"},{"v":0,"d":"0.00"},{"v":0,"d":"0.00"},{"v":0,"d":"0.00"},{"v":0,"d":"0.00"},{"v":0,"d":"0.00"},{"v":0,"d":"0.00"},{"v":0,"d":"0.00"},{"v":0,"d":"0.00"},{"v":0,"d":"0.00"}]
[null,"ZAMĚSTNANCI:",null,"Chvojkova, P","Kodeda, A","Lazecky, P","Kotas, J","Dryml, J","Hrebicek, O","Kupkova, H"]
[]
[null,{"$f":"B187+1","v":"2012-07-20T09:00:00"}]
[null,{"$f":"B247","v":41110.375},{"$nulls":5},"Dovolená"]
[null,{"$f":"ZobrazeníObdobí","v":":15"},null,"Recepce",{"$nulls":3},"Dovolená"]
[null,":30",null,"Recepce",{"$nulls":3},"Dovolená"]
[null,":45",null,"Recepce","Vedoucí",null,"Zákaznické služby","Dovolená"]
[null,"10:00 odp.",null,"Recepce","Vedoucí",null,"Zákaznické služby","Dovolená"]
[null,":15",null,"Recepce","Vedoucí",null,"Zákaznické služby","Dovolená"]
[null,":30",null,"Recepce","Vedoucí",null,"Zákaznické služby","Dovolená","Účetnictví"]
[null,":45",null,"Recepce","Vedoucí",null,"Zákaznické služby","Dovolená","Účetnictví","Údržbář"]
[null,"11:00 odp.",null,"Recepce","Vedoucí",null,"Zákaznické služby","Dovolená","Účetnictví","Údržbář"]
[null,":15",null,"Recepce","Vedoucí","Průvodce","Zákaznické služby","Dovolená","Účetnictví","Údržbář"]
[null,":30",null,"Recepce","Přestávka","Průvodce","Zákaznické služby","Dovolená","Účetnictví","Údržbář"]
[null,":45",null,"Oběd","Vedoucí","Průvodce","Zákaznické služby","Dovolená","Účetnictví","Údržbář"]
[null,"12:00 dop.",null,"Oběd","Vedoucí","Průvodce","Zákaznické služby","Dovolená","Účetnictví","Údržbář"]
[null,":15",null,"Recepce","Vedoucí","Průvodce","Zákaznické služby","Dovolená","Přestávka","Údržbář"]
[null,":30",null,"Recepce","Vedoucí","Přestávka","Zákaznické služby","Dovolená","Telefony","Přestávka"]
[null,":45",null,"Recepce","Vedoucí","Průvodce","Zákaznické služby","Dovolená","Telefony","Údržbář"]
[null,"1:00 dop.",null,"Recepce","Vedoucí","Průvodce","Zákaznické služby","Dovolená","Telefony","Údržbář"]
[null,":15",null,"Recepce","Vedoucí","Průvodce","Oběd","Dovolená","Telefony","Údržbář"]
[null,":30",null,null,"Vedoucí","Průvodce","Oběd","Dovolená","Telefony","Údržbář"]
[null,":45",null,null,"Vedoucí","Průvodce","Oběd","Dovolená","Oběd","Údržbář"]
[null,"2:00 dop.",null,"Pokladní","Oběd","Průvodce","Oběd","Dovolená","Oběd","Údržbář"]
[null,":15",null,"Pokladní","Oběd","Průvodce","Zákaznické služby","Dovolená","Telefony","Údržbář"]
[null,":30",null,"Pokladní","Oběd","Oběd","Zákaznické služby","Dovolená","Telefony","Oběd"]
[null,":45",null,"Pokladní","Oběd","Oběd","Zákaznické služby","Dovolená","Telefony","Oběd"]
[null,"3:00 dop.",null,"Pokladní","Zabezpečení","Oběd","Zákaznické služby","Dovolená","Telefony","Oběd"]
[null,":15",null,"Pokladní","Zabezpečení","Oběd","Zákaznické služby","Dovolená","Telefony","Oběd"]
[null,":30",null,"Pokladní","Zabezpečení","Průvodce","Zákaznické služby","Dovolená","Telefony","Zavřít"]
[null,":45",null,"Pokladní","Zabezpečení","Průvodce","Zákaznické služby","Dovolená","Telefony","Zavřít"]
[null,"4:00 dop.",null,"Pokladní","Zabezpečení","Průvodce","Zákaznické služby","Dovolená","Přestávka","Zavřít"]
[null,":15",null,"Přestávka","Zabezpečení","Průvodce","Přestávka","Dovolená","Telefony","Zavřít"]
[null,":30",null,"Pokladní","Zabezpečení","Průvodce","Zákaznické služby","Dovolená","Telefony","Zavřít"]
[null,":45",null,"Pokladní","Zabezpečení","Průvodce","Zákaznické služby","Dovolená","Telefony","Zavřít"]
[null,"5:00 dop.",null,"Pokladní","Zabezpečení","Průvodce","Zákaznické služby",null,"Telefony","Zavřít"]
[null,":15",null,"Pokladní","Zabezpečení","Průvodce","Zákaznické služby",null,"Telefony","Zavřít"]
[null,":30",null,"Pokladní","Zabezpečení","Průvodce","Zákaznické služby",null,"Telefony","Zavřít"]
[null,":45",null,"Pokladní","Zabezpečení","Průvodce","Zákaznické služby",null,"Telefony","Zavřít"]
[null,"6:00 dop.",null,"Pokladní","Zabezpečení","Průvodce","Zákaznické služby",null,"Telefony","Zavřít"]
[null,":15",null,"Pokladní","Zabezpečení","Průvodce","Zákaznické služby",null,"Telefony","Zavřít"]
[null,":30",null,null,"Zabezpečení","Průvodce","Zákaznické služby",null,"Telefony","Zavřít"]
[null,":45",null,null,"Zabezpečení","Přestávka","Zákaznické služby",null,"Telefony","Přestávka"]
[null,"7:00 dop.",{"$nulls":3},"Průvodce",null,null,"Telefony","Zavřít"]
[null,":15",{"$nulls":3},"Průvodce",null,null,"Telefony","Zavřít"]
[null,":30",{"$nulls":3},"Průvodce",{"$nulls":3},"Zavřít"]
[null,":45",{"$nulls":3},"Průvodce",{"$nulls":3},"Zavřít"]
[null,"8:00 dop.",{"$nulls":3},"Průvodce",{"$nulls":3},"Zavřít"]
[null,":15",{"$nulls":3},"Průvodce"]
[null,":30",{"$nulls":3},"Průvodce"]
[null,":45"]
[null,"9:00 dop."]

{"sheet":"Nastavení","index":1,"n_rows":26,"n_cols":7,"rows_kept":26}
[null,"Nastavení"]
[]
[]
[null,"POČET ODDÍLŮ V RÁMCI HODINY",4]
[]
[]
[]
[]
[]
[null,"Zaměstnanci",null,"Pozice/volno","Barva","Placené","Celý den"]
[null,"Chvojkova, P",null,"Oběd",1,false,false]
[null,"Dryml, J",null,"Přestávka",1,false,false]
[null,"Hrebicek, O",null,"Volno",1,false,true]
[null,"Karasek, P",null,"Nemoc",1,false,true]
[null,"Kodeda, A",null,"Osobní den",1,true,true]
[null,"Kotas, J",null,"Dovolená",1,true,true]
[null,"Kupkova, H",null,"Recepce",2,true,false]
[null,"Lazecky, P",null,"Pokladní",3,true,false]
[{"$nulls":3},"Vedoucí",4,true,false]
[{"$nulls":3},"Průvodce",5,true,false]
[{"$nulls":3},"Zákaznické služby",6,true,false]
[{"$nulls":3},"Telefony",7,true,false]
[{"$nulls":3},"Zabezpečení",8,true,false]
[{"$nulls":3},"Údržbář",9,true,false]
[{"$nulls":3},"Účetnictví",10,true,false]
[{"$nulls":3},"Zavřít",11,true,false]